[Event "Catalan Youth Championship 2024"]
[Site "Cambrils"]
[Date "2024.03.24"]
[Round "2.10"]
[White "Prada Villagrasa, Pau Manel"]
[Black "Puerto Fernandez, Eloi"]
[Result "1-0"]
[ECO "C41"]
[WhiteElo "2103"]
[BlackElo "1773"]
[Annotator "RC"]
[PlyCount "91"]
[EventDate "2024.03.13"]
[EventType "swiss"]
[EventCountry "ESP"]
[SourceTitle "playchess.com"]
[Source "ChessBase"]
[SourceQuality "1"]
[TimeControl "5400+30"]

1. e4 {[%emt 0:00:03]} d6 {[%emt 0:00:20]} 2. d4 {[%emt 0:00:17]} Nf6 {[%emt 0:00:19]} 3. Nc3 {[%emt 0:00:14]} e5 {[%emt 0:00:28]} 4. Nf3 {[%emt 0:01:53]} Nbd7 {[%emt 0:01:04]} 5. h3 {[%emt 0:00:54]} Be7 {[%emt 0:01:48]} 6. Be3 {[%emt 0:00:26]} O-O {[%emt 0:00:52]} 7. Qd2 {[%emt 0:00:40]} c6 {[%emt 0:00:19]} 8. O-O-O {[%emt 0:01:56]} b5 {[%emt 0:01:54]} 9. Bd3 {[%emt 0:02:12]} a5 {[%emt 0:01:51]} 10. g4 {[%emt 0:01:49]} exd4 {[%emt 0:01:46]} 11. Nxd4 {[%emt 0:01:03]} Bb7 {[%emt 0:02:18]} 12. g5 {[%emt 0:07:29]} Ne8 {[%emt 0:06:54]} 13. f4 {[%emt 0:02:54]} b4 {[%emt 0:01:41]} 14. Nce2 {[%emt 0:03:10]} c5 {[%emt 0:02:48]} 15. Nf5 {[%emt 0:03:58]} c4 {[%emt 0:03:05]} 16. Bxc4 {[%emt 0:00:06]} Bxe4 {[%emt 0:00:19]} 17. Neg3 {[%emt 0:00:56]} Bxh1 {[%emt 0:25:13]} 18. Rxh1 {[%emt 0:00:03]} Kh8 {[%emt 0:01:15]} 19. Bd4 {[%emt 0:01:53]} f6 {[%emt 0:00:42]} 20. Re1 {[%emt 0:00:19]} Ne5 {[%emt 0:45:34]} 21. gxf6 {[%emt 0:12:56]} Bxf6 {[%emt 0:00:00]} 22. fxe5 {[%emt 0:00:46]} dxe5 {[%emt 0:00:00]} 23. Bxe5 {[%emt 0:00:56]} Bg5 {[%emt 0:00:00]} 24. Bf4 {[%emt 0:00:12]} Qxd2+ {[%emt 0:00:00]} 25. Bxd2 {[%emt 0:00:09]} Bxd2+ {[%emt 0:00:00]} 26. Kxd2 {[%emt 0:00:10]} g6 {[%emt 0:00:00]} 27. Ne3 {[%emt 0:01:16]} Rd8+ {[%emt 0:00:00]} 28. Bd3 {[%emt 0:00:35]} Rf3 {[%emt 0:00:00]} 29. Rg1 {[%emt 0:00:35]} Nd6 {[%emt 0:00:00]} 30. Ke2 {[%emt 0:00:22]} Rf6 {[%emt 0:00:00]} 31. b3 {[%emt 0:02:52]} Re8 {[%emt 0:00:00]} 32. Ngf1 {[%emt 0:01:14]} Ne4 {[%emt 0:00:00]} 33. Bxe4 {[%emt 0:00:44]} Rxe4 {[%emt 0:00:00]} 34. Nd2 {[%emt 0:00:52]} Re8 {[%emt 0:00:00]} 35. Ndc4 {[%emt 0:00:07]} Rc6 {[%emt 0:00:00]} 36. Rg5 {[%emt 0:01:07]} a4 {[%emt 0:00:00]} 37. Rb5 {[%emt 0:00:21]} axb3 {[%emt 0:00:00]} 38. axb3 {[%emt 0:00:11]} Re4 {[%emt 0:00:00]} 39. Rxb4 {[%emt 0:00:41]} Rh4 {[%emt 0:00:00]} 40. Ne5 {[%emt 0:07:17]} Rxb4 {[%emt 0:00:00]} 41. Nxc6 {[%emt 0:00:04]} Rh4 {[%emt 0:00:00]} 42. b4 {[%emt 0:00:21]} Rxh3 {[%emt 0:00:00]} 43. b5 {[%emt 0:00:14]} Rh1 {[%emt 0:00:00]} 44. b6 {[%emt 0:00:47]} Rb1 {[%emt 0:00:00]} 45. Nd5 {[%emt 0:00:04]} h5 {[%emt 0:00:34]} 46. Ndb4 {[%emt 0:00:17]} 1-0

[Event "Catalan Youth Championship 2024"]
[Site "Cambrils"]
[Date "2024.03.24"]
[Round "2.11"]
[White "Martinez Marcos, Erik"]
[Black "Herman Gamazo, Isaac"]
[Result "0-1"]
[ECO "E67"]
[WhiteElo "1739"]
[BlackElo "2096"]
[Annotator "NA RC"]
[PlyCount "42"]
[EventDate "2024.03.13"]
[EventType "swiss"]
[EventCountry "ESP"]
[SourceTitle "playchess.com"]
[Source "ChessBase"]
[SourceQuality "1"]
[TimeControl "5400+30"]

1. d4 {[%emt 0:00:04]} Nf6 {[%emt 0:00:33]} 2. Nf3 {[%emt 0:00:19]} d6 {[%emt 0:01:30]} 3. c4 {[%emt 0:01:07]} c5 {[%emt 0:00:22]} 4. g3 {[%emt 0:01:12]} g6 {[%emt 0:01:15]} 5. Bg2 {[%emt 0:00:35]} Bg7 {[%emt 0:00:25]} 6. Nc3 {[%emt 0:01:28]} Nbd7 {[%emt 0:00:37]} 7. O-O {[%emt 0:01:34]} O-O {[%emt 0:00:38]} 8. e4 {[%emt 0:06:24]} a6 {[%emt 0:02:39]} 9. a4 {[%emt 0:01:38]} Rb8 {[%emt 0:00:36]} 10. Be3 {[%emt 0:02:15]} Qa5 {[%emt 1:26:55]} 11. Qc1 {[%emt 0:15:44]} Rd8 {[%emt 0:00:00]} 12. Bh6 {[%emt 1:04:10]} Bh8 {[%emt 0:00:00]} 13. e5 {[%emt 0:00:00]} cxd4 {[%emt 0:00:00]} 14. exf6 {[%emt 0:00:00]} dxc3 {[%emt 0:00:00]} 15. fxe7 {[%emt 0:00:00]} Re8 {[%emt 0:02:30]} 16. Ng5 {[%emt 0:02:00]} Rxe7 {[%emt 0:00:00]} 17. Re1 {[%emt 0:00:30]} cxb2 {[%emt 0:00:00]} 18. Rxe7 {[%emt 0:00:30]} Qd8 {[%emt 0:00:00]} 19. Rxd7 {[%emt 0:00:00]} Bxd7 {[%emt 0:00:00]} 20. Qf4 {[%emt 0:00:29]} bxa1=Q+ {[%emt 0:00:00]} 21. Bf1 {[%emt 0:00:26]} Qdf6 {[%emt 0:03:00]} 0-1

[Event "Catalan Youth Championship 2024"]
[Site "Cambrils"]
[Date "2024.03.24"]
[Round "2.12"]
[White "Alonso Gimenez, Mauro"]
[Black "Sala Martin, Guillem"]
[Result "1/2-1/2"]
[ECO "B30"]
[WhiteElo "1980"]
[BlackElo "1767"]
[Annotator "RC"]
[PlyCount "108"]
[EventDate "2024.03.13"]
[EventType "swiss"]
[EventCountry "ESP"]
[SourceTitle "playchess.com"]
[Source "ChessBase"]
[SourceQuality "1"]
[TimeControl "5400+30"]

1. e4 {[%emt 1:31:00]} c5 {[%emt 0:00:22]} 2. Nc3 {[%emt 0:00:00]} e6 {[%emt 0:00:13]} 3. Nf3 {[%emt 0:00:00]} Nc6 {[%emt 0:00:52]} 4. Bb5 {[%emt 0:00:00]} Nge7 {[%emt 0:01:58]} 5. O-O {[%emt 0:00:00]} g6 {[%emt 1:29:35]} 6. d4 {[%emt 0:00:00]} cxd4 {[%emt 0:00:00]} 7. Nxd4 {[%emt 0:00:00]} Bg7 {[%emt 0:00:00]} 8. Be3 {[%emt 0:03:30]} O-O {[%emt 0:01:30]} 9. f4 {[%emt 0:00:30]} a6 {[%emt 0:00:30]} 10. Bxc6 {[%emt 0:00:30]} dxc6 {[%emt 0:00:30]} 11. Nb3 {[%emt 0:00:30]} Qc7 {[%emt 0:00:00]} 12. Qf3 {[%emt 0:00:30]} b6 {[%emt 0:01:00]} 13. Nd2 {[%emt 0:00:00]} Bb7 {[%emt 0:00:00]} 14. a4 {[%emt 0:00:00]} c5 {[%emt 0:01:00]} 15. Qf2 {[%emt 0:01:30]} a5 {[%emt 0:00:30]} 16. Qh4 {[%emt 0:00:30]} f5 {[%emt 0:00:00]} 17. Nb5 {[%emt 0:00:30]} Qd8 {[%emt 0:00:00]} 18. Rad1 {[%emt 0:00:30]} fxe4 {[%emt 0:00:00]} 19. Nxe4 {[%emt 0:00:00]} Nd5 {[%emt 0:00:00]} 20. Qh3 {[%emt 0:01:00]} Qe7 {[%emt 0:02:30]} 21. Rfe1 {[%emt 0:00:00]} Nxf4 {[%emt 0:00:00]} 22. Bxf4 {[%emt 0:00:00]} Rxf4 {[%emt 0:00:00]} 23. Ned6 {[%emt 0:00:00]} e5 {[%emt 0:00:00]} 24. Nxb7 {[%emt 0:00:29]} Qxb7 {[%emt 0:00:00]} 25. Rd7 {[%emt 0:00:41]} Qc6 {[%emt 0:00:00]} 26. Nc7 {[%emt 0:01:50]} Ra7 {[%emt 0:00:00]} 27. Rxg7+ {[%emt 0:00:00]} Kxg7 {[%emt 0:00:00]} 28. Ne6+ {[%emt 0:00:05]} Kg8 {[%emt 0:00:00]} 29. Nxf4 {[%emt 0:00:36]} exf4 {[%emt 0:00:00]} 30. Qe6+ {[%emt 0:00:40]} Qxe6 31. Rxe6 Rd7 {[%emt 0:00:00]} 32. Rxb6 {[%emt 0:00:07]} Rd1+ {[%emt 0:00:00]} 33. Kf2 {[%emt 0:00:04]} Rd2+ {[%emt 0:00:00]} 34. Kf3 {[%emt 0:00:03]} Rxc2 {[%emt 0:00:00]} 35. Rb5 {[%emt 0:00:13]} c4 {[%emt 0:00:43]} 36. h4 {[%emt 0:00:55]} h5 {[%emt 0:07:17]} 37. Rxa5 {[%emt 0:00:45]} Rxb2 {[%emt 0:00:00]} 38. Rc5 {[%emt 0:02:32]} Rc2 {[%emt 0:00:00]} 39. a5 {[%emt 0:00:00]} Ra2 {[%emt 0:00:00]} 40. Rxc4 Rxa5 {[%emt 0:02:00]} 41. Rxf4 {[%emt 0:00:00]} Kg7 {[%emt 0:00:00]} 42. Rb4 {[%emt 0:00:00]} Kf6 {[%emt 0:00:00]} 43. Kf4 {[%emt 0:00:18]} Rf5+ {[%emt 0:00:00]} 44. Ke4 {[%emt 0:00:08]} Re5+ {[%emt 0:00:00]} 45. Kf3 {[%emt 0:00:42]} Rf5+ {[%emt 0:00:00]} 46. Rf4 {[%emt 0:00:08]} Ke5 {[%emt 0:00:00]} 47. Rxf5+ {[%emt 0:00:10]} Kxf5 {[%emt 0:00:00]} 48. g4+ {[%emt 0:00:42]} hxg4+ {[%emt 0:00:00]} 49. Kg3 {[%emt 0:00:04]} Kf6 {[%emt 0:00:00]} 50. Kxg4 {[%emt 0:00:04]} Kf7 {[%emt 0:00:00]} 51. Kf3 {[%emt 0:00:14]} Kf6 {[%emt 0:00:00]} 52. Kf4 {[%emt 0:00:07]} Kf7 {[%emt 0:00:00]} 53. Ke5 {[%emt 0:00:05]} Ke7 {[%emt 0:00:00]} 54. Ke4 {[%emt 0:00:17]} Ke6 {[%emt 0:00:00]} 1/2-1/2

[Event "Catalan Youth Championship 2024"]
[Site "Cambrils"]
[Date "2024.03.24"]
[Round "2.13"]
[White "Salinas Tomas, Daniel"]
[Black "Silva Cerda, Mark Valentin"]
[Result "1-0"]
[ECO "B51"]
[WhiteElo "2386"]
[BlackElo "1900"]
[Annotator "RC"]
[PlyCount "123"]
[EventDate "2024.03.13"]
[EventType "swiss"]
[EventCountry "ESP"]
[SourceTitle "playchess.com"]
[Source "ChessBase"]
[SourceQuality "1"]
[TimeControl "5400+30"]

1. e4 {[%emt 0:00:04]} c5 {[%emt 0:00:20]} 2. Nf3 {[%emt 0:00:24]} d6 {[%emt 0:00:20]} 3. Bb5+ {[%emt 0:00:42]} Nd7 {[%emt 0:00:00]} 4. c3 {[%emt 0:02:39]} Ngf6 {[%emt 0:03:37]} 5. Qe2 {[%emt 0:00:34]} a6 {[%emt 0:01:42]} 6. Ba4 {[%emt 0:00:20]} b5 {[%emt 0:01:48]} 7. Bc2 {[%emt 0:00:09]} Bb7 {[%emt 0:22:55]} 8. O-O {[%emt 0:01:33]} e6 {[%emt 0:00:51]} 9. a4 {[%emt 0:08:04]} Be7 {[%emt 0:00:15]} 10. d4 {[%emt 0:01:55]} O-O {[%emt 0:04:42]} 11. Rd1 {[%emt 0:09:15]} Qb8 {[%emt 0:03:58]} 12. Bf4 {[%emt 0:17:03]} Re8 {[%emt 0:00:31]} 13. Na3 {[%emt 0:02:47]} e5 {[%emt 0:08:23]} 14. dxe5 {[%emt 0:09:59]} dxe5 {[%emt 0:09:15]} 15. Bg3 {[%emt 0:00:09]} Bc6 {[%emt 0:07:09]} 16. Nd2 {[%emt 0:05:34]} c4 {[%emt 0:13:17]} 17. Nf1 {[%emt 0:00:48]} Nc5 {[%emt 0:00:09]} 18. f3 {[%emt 0:00:27]} Ne6 {[%emt 0:00:58]} 19. Ne3 {[%emt 0:01:27]} Bc5 {[%emt 0:00:05]} 20. Bf2 {[%emt 0:02:03]} Nf4 {[%emt 0:01:18]} 21. Qf1 {[%emt 0:00:07]} Qb6 {[%emt 0:00:21]} 22. Nf5 {[%emt 0:02:13]} g6 {[%emt 0:06:48]} 23. Nd6 {[%emt 0:05:40]} Red8 {[%emt 0:00:02]} 24. Bxc5 {[%emt 0:00:22]} Qxc5+ {[%emt 0:01:01]} 25. Qf2 {[%emt 0:00:04]} Qxf2+ {[%emt 0:00:59]} 26. Kxf2 {[%emt 0:00:02]} Kf8 {[%emt 0:01:34]} 27. g3 {[%emt 0:13:36]} Ne6 {[%emt 0:02:19]} 28. Rd2 {[%emt 0:00:27]} Ke7 {[%emt 0:05:07]} 29. Rad1 {[%emt 0:00:50]} Rab8 {[%emt 0:00:14]} 30. Ke3 {[%emt 0:02:25]} Ne8 {[%emt 0:01:17]} 31. Nxe8 {[%emt 0:00:41]} Bxe8 {[%emt 0:00:16]} 32. Rxd8 {[%emt 0:01:53]} Rxd8 {[%emt 0:00:08]} 33. Rxd8 {[%emt 0:00:58]} Kxd8 {[%emt 0:02:16]} 34. axb5 {[%emt 0:00:53]} axb5 {[%emt 0:01:06]} 35. b3 {[%emt 0:02:33]} cxb3 {[%emt 0:00:46]} 36. Bxb3 {[%emt 0:00:01]} Nc5 {[%emt 0:00:15]} 37. Bd1 {[%emt 0:02:37]} Kc7 {[%emt 0:00:09]} 38. Be2 {[%emt 0:02:52]} Kb6 {[%emt 0:00:05]} 39. Nc2 {[%emt 0:00:10]} Na4 {[%emt 0:00:48]} 40. Kd2 {[%emt 0:00:11]} Kc5 {[%emt 0:00:17]} 41. Nb4 {[%emt 0:00:10]} Nb6 {[%emt 0:00:26]} 42. Bd1 {[%emt 0:04:34]} Bd7 {[%emt 0:00:32]} 43. Bb3 {[%emt 0:00:14]} Be6 {[%emt 0:00:03]} 44. Bxe6 {[%emt 0:00:32]} fxe6 {[%emt 0:00:05]} 45. Nd3+ {[%emt 0:01:23]} Kd6 {[%emt 0:00:07]} 46. Nf2 {[%emt 0:00:14]} Nc4+ {[%emt 0:00:44]} 47. Ke2 {[%emt 0:00:09]} Nb2 {[%emt 0:01:27]} 48. Kd2 {[%emt 0:00:57]} Nc4+ {[%emt 0:00:40]} 49. Ke2 {[%emt 0:00:00]} Nb2 {[%emt 0:00:12]} 50. Ng4 {[%emt 0:00:38]} h5 {[%emt 0:00:24]} 51. Ne3 {[%emt 0:00:36]} Kc5 {[%emt 0:00:36]} 52. f4 {[%emt 0:00:34]} Nc4 {[%emt 0:03:13]} 53. Ng2 {[%emt 0:00:07]} Kd6 {[%emt 0:00:32]} 54. Nh4 {[%emt 0:00:23]} exf4 {[%emt 0:00:28]} 55. gxf4 {[%emt 0:00:10]} g5 {[%emt 0:00:15]} 56. fxg5 {[%emt 0:00:11]} Ke5 {[%emt 0:00:06]} 57. Nf3+ {[%emt 0:00:50]} Kd6 {[%emt 0:00:59]} 58. Nd4 {[%emt 0:00:36]} Ke7 {[%emt 0:00:45]} 59. Nxb5 {[%emt 0:00:32]} Ne5 {[%emt 0:00:16]} 60. Nd4 {[%emt 0:00:23]} Nf7 {[%emt 0:00:20]} 61. Nf3 {[%emt 0:00:17]} Nh8 {[%emt 0:00:29]} 62. Ne5 {[%emt 0:03:29]} 1-0

[Event "Catalan Youth Championship 2024"]
[Site "Cambrils"]
[Date "2024.03.24"]
[Round "2.14"]
[White "Bergaretxe Gavalda, Unai"]
[Black "Montes Molina, Ivan"]
[Result "1-0"]
[ECO "E62"]
[WhiteElo "1921"]
[BlackElo "2100"]
[Annotator "RC"]
[PlyCount "131"]
[EventDate "2024.03.13"]
[EventType "swiss"]
[EventCountry "ESP"]
[SourceTitle "playchess.com"]
[Source "ChessBase"]
[SourceQuality "1"]
[TimeControl "5400+30"]

1. d4 {[%emt 0:00:03]} Nf6 {[%emt 0:00:11]} 2. c4 {[%emt 0:00:06]} g6 {[%emt 0:00:05]} 3. Nf3 {[%emt 0:00:05]} Bg7 {[%emt 0:00:08]} 4. g3 {[%emt 0:00:04]} O-O {[%emt 0:00:06]} 5. Bg2 {[%emt 0:00:04]} d6 {[%emt 0:00:04]} 6. O-O {[%emt 0:00:07]} c6 {[%emt 0:00:03]} 7. Nc3 {[%emt 0:00:05]} Bf5 {[%emt 0:00:07]} 8. Re1 {[%emt 0:00:50]} Ne4 {[%emt 1:33:46]} 9. Nxe4 {[%emt 0:15:26]} Bxe4 {[%emt 0:00:00]} 10. b3 {[%emt 0:00:32]} d5 {[%emt 0:00:00]} 11. Bb2 {[%emt 0:04:29]} a5 {[%emt 0:00:00]} 12. Qd2 {[%emt 0:01:26]} Nd7 {[%emt 0:00:00]} 13. Rec1 {[%emt 0:05:57]} Re8 {[%emt 0:00:00]} 14. Qf4 {[%emt 0:02:23]} f6 {[%emt 0:00:00]} 15. cxd5 {[%emt 0:03:24]} cxd5 {[%emt 0:00:00]} 16. Qc7 {[%emt 1:03:29]} Bh6 {[%emt 0:00:00]} 17. e3 {[%emt 0:00:30]} b5 {[%emt 0:00:00]} 18. Qxd8 {[%emt 0:00:00]} Rexd8 {[%emt 0:00:00]} 19. Rc7 {[%emt 0:01:00]} a4 {[%emt 0:05:30]} 20. bxa4 {[%emt 0:00:30]} Rxa4 {[%emt 0:00:00]} 21. a3 {[%emt 0:00:30]} Nb6 {[%emt 0:00:00]} 22. Nd2 {[%emt 0:00:00]} Bxg2 {[%emt 0:00:00]} 23. Kxg2 {[%emt 0:00:00]} Bf8 {[%emt 0:00:00]} 24. Nb3 {[%emt 0:00:00]} Nc4 {[%emt 0:00:00]} 25. Bc1 {[%emt 0:00:00]} e6 {[%emt 0:00:00]} 26. Rb7 {[%emt 0:00:00]} b4 {[%emt 0:00:00]} 27. axb4 {[%emt 0:00:00]} Rxa1 {[%emt 0:00:00]} 28. Nxa1 {[%emt 0:00:00]} Ra8 {[%emt 0:00:00]} 29. Nb3 {[%emt 0:00:00]} Ra2 {[%emt 0:05:00]} 30. Rb8 {[%emt 0:00:00]} Rc2 {[%emt 0:00:30]} 31. g4 {[%emt 0:01:59]} Rc3 {[%emt 0:00:00]} 32. Nc5 {[%emt 0:00:02]} Kf7 {[%emt 0:00:00]} 33. Nxe6 {[%emt 0:00:10]} Kxe6 {[%emt 0:00:00]} 34. Rxf8 {[%emt 0:00:07]} Rxc1 {[%emt 0:00:00]} 35. Rh8 {[%emt 0:00:04]} Rb1 {[%emt 0:00:00]} 36. h4 {[%emt 0:00:12]} h5 {[%emt 0:00:00]} 37. Rh6 {[%emt 0:00:51]} hxg4 {[%emt 0:00:00]} 38. Rxg6 {[%emt 0:00:03]} Kf5 {[%emt 0:00:00]} 39. Rg8 {[%emt 0:00:07]} Rxb4 {[%emt 0:00:00]} 40. Kg3 {[%emt 0:02:03]} Rb1 {[%emt 0:00:00]} 41. Rd8 {[%emt 0:04:22]} Nb6 {[%emt 0:00:00]} 42. Rb8 {[%emt 0:00:00]} Rb2 {[%emt 0:00:00]} 43. Rg8 {[%emt 0:00:00]} Nc4 {[%emt 0:00:00]} 44. Rd8 {[%emt 0:00:00]} Nb6 {[%emt 0:00:00]} 45. Rg8 {[%emt 0:00:00]} Na4 {[%emt 0:07:30]} 46. h5 {[%emt 0:02:30]} Nc3 {[%emt 0:00:00]} 47. h6 {[%emt 0:00:00]} Ne4+ {[%emt 0:00:00]} 48. Kg2 {[%emt 0:00:00]} Rxf2+ {[%emt 0:00:00]} 49. Kg1 {[%emt 0:01:30]} Rf3 {[%emt 0:00:00]} 50. h7 {[%emt 0:00:00]} Rg3+ {[%emt 0:00:00]} 51. Kf1 {[%emt 0:01:00]} Nd2+ {[%emt 0:00:00]} 52. Ke1 {[%emt 0:00:00]} Rh3 {[%emt 0:01:12]} 53. h8=Q {[%emt 0:01:00]} Rxh8 {[%emt 0:00:05]} 54. Rxh8 {[%emt 0:00:00]} Ne4 {[%emt 0:03:13]} 55. Rg8 {[%emt 0:00:00]} g3 {[%emt 0:00:00]} 56. Ke2 {[%emt 0:00:00]} Ng5 {[%emt 0:00:00]} 57. Rd8 {[%emt 0:00:00]} Kg4 {[%emt 0:01:30]} 58. Rxd5 {[%emt 0:01:36]} Kh3 {[%emt 0:00:00]} 59. Ra5 {[%emt 0:00:26]} g2 {[%emt 0:01:00]} 60. Ra1 {[%emt 0:00:11]} Kh2 {[%emt 0:00:30]} 61. Kf2 {[%emt 0:00:31]} f5 {[%emt 0:00:00]} 62. d5 {[%emt 0:01:46]} Ne4+ {[%emt 0:00:16]} 63. Kf3 {[%emt 0:00:30]} Nd2+ {[%emt 0:00:22]} 64. Kf2 {[%emt 0:00:00]} Ne4+ {[%emt 0:00:08]} 65. Kf3 {[%emt 0:00:00]} Ng3 {[%emt 0:00:17]} 66. Ra2 {[%emt 0:01:30]} 1-0

[Event "Catalan Youth Championship 2024"]
[Site "Cambrils"]
[Date "2024.03.24"]
[Round "2.15"]
[White "Aleksanyan Israilyan, Nicolas"]
[Black "Tarrago Plaza, Marc"]
[Result "1-0"]
[ECO "C16"]
[WhiteElo "2045"]
[BlackElo "1894"]
[Annotator "NA RC"]
[PlyCount "119"]
[EventDate "2024.03.13"]
[EventType "swiss"]
[EventCountry "ESP"]
[SourceTitle "playchess.com"]
[Source "ChessBase"]
[SourceQuality "1"]
[TimeControl "5400+30"]

1. e4 {[%emt 0:01:50]} e6 {[%emt 0:00:09]} 2. d4 {[%emt 0:00:05]} d5 {[%emt 0:00:07]} 3. Nc3 {[%emt 0:00:05]} Bb4 {[%emt 0:00:19]} 4. e5 {[%emt 0:00:08]} b6 {[%emt 0:00:14]} 5. Qg4 {[%emt 0:00:45]} Bf8 {[%emt 0:00:36]} 6. h4 {[%emt 0:01:26]} Ba6 {[%emt 0:04:20]} 7. h5 {[%emt 0:02:29]} Bxf1 {[%emt 0:01:22]} 8. Kxf1 {[%emt 0:00:01]} Qd7 {[%emt 0:01:29]} 9. Nf3 {[%emt 0:04:17]} Ne7 {[%emt 0:04:34]} 10. Bg5 {[%emt 0:03:23]} Nf5 {[%emt 0:03:48]} 11. Nh4 {[%emt 0:00:50]} h6 {[%emt 0:04:45]} 12. Bd2 {[%emt 0:00:39]} Nxh4 {[%emt 0:01:46]} 13. Rxh4 {[%emt 0:00:40]} c5 {[%emt 0:00:53]} 14. Ne2 {[%emt 0:04:43]} cxd4 {[%emt 0:01:59]} 15. Nxd4 {[%emt 0:00:49]} Nc6 {[%emt 0:00:35]} 16. Nxc6 {[%emt 0:00:29]} Qxc6 {[%emt 0:00:06]} 17. Qa4 {[%emt 0:01:09]} Qxa4 {[%emt 0:02:30]} 18. Rxa4 {[%emt 0:00:09]} f5 {[%emt 0:26:15]} 19. Be3 {[%emt 0:02:03]} Bc5 {[%emt 0:03:11]} 20. Bxc5 {[%emt 0:00:14]} bxc5 {[%emt 0:00:03]} 21. Ra5 {[%emt 0:00:30]} c4 {[%emt 0:00:11]} 22. c3 {[%emt 0:02:06]} O-O {[%emt 0:03:00]} 23. Ra6 {[%emt 0:00:29]} Kf7 {[%emt 0:05:05]} 24. f4 {[%emt 0:01:13]} Rfb8 {[%emt 0:01:40]} 25. Rb1 {[%emt 0:01:14]} Rb6 {[%emt 0:00:30]} 26. Ra5 {[%emt 0:02:54]} a6 {[%emt 0:01:26]} 27. b4 {[%emt 0:00:15]} cxb3 {[%emt 0:00:40]} 28. Rxb3 {[%emt 0:01:36]} Rab8 {[%emt 0:02:08]} 29. Raa3 {[%emt 0:00:37]} g6 {[%emt 0:02:46]} 30. Rxa6 {[%emt 0:00:58]} Rxa6 {[%emt 0:00:47]} 31. Rxb8 {[%emt 0:00:04]} gxh5 {[%emt 0:00:15]} 32. Rb7+ {[%emt 0:01:35]} Kg6 {[%emt 0:00:57]} 33. Re7 {[%emt 0:00:01]} h4 {[%emt 0:28:34]} 34. a3 {[%emt 0:15:00]} Kh5 {[%emt 0:00:00]} 35. Kf2 {[%emt 0:00:06]} Kg4 {[%emt 0:00:00]} 36. Ke3 {[%emt 0:00:05]} Rxa3 {[%emt 0:00:00]} 37. Rxe6 {[%emt 0:01:48]} Rxc3+ {[%emt 0:00:00]} 38. Kd4 {[%emt 0:00:45]} Rc4+ {[%emt 0:00:00]} 39. Kxd5 {[%emt 0:00:05]} Rxf4 {[%emt 0:00:00]} 40. Rxh6 {[%emt 0:01:06]} Kg3 {[%emt 0:00:00]} 41. e6 {[%emt 0:01:03]} Rf2 {[%emt 0:00:00]} 42. Rg6+ {[%emt 0:01:06]} Kh2 {[%emt 0:04:30]} 43. e7 {[%emt 0:00:17]} Rd2+ {[%emt 0:00:00]} 44. Kc6 {[%emt 0:00:38]} Re2 {[%emt 0:00:00]} 45. Kd7 {[%emt 0:00:07]} Rd2+ {[%emt 0:00:00]} 46. Rd6 {[%emt 0:00:23]} Re2 {[%emt 0:00:00]} 47. Re6 {[%emt 0:00:49]} Rd2+ {[%emt 0:00:00]} 48. Kc6 {[%emt 0:03:07]} Rc2+ {[%emt 0:00:00]} 49. Kd5 {[%emt 0:00:10]} Rc8 {[%emt 0:00:00]} 50. Rg6 {[%emt 0:07:34]} Ra8 {[%emt 0:00:55]} 51. Ke5 {[%emt 0:00:29]} f4 {[%emt 0:01:17]} 52. Kxf4 {[%emt 0:00:37]} Ra4+ {[%emt 0:01:28]} 53. Kf5 {[%emt 0:00:08]} Ra5+ {[%emt 0:01:50]} 54. Kf6 {[%emt 0:00:23]} Ra6+ {[%emt 0:00:00]} 55. Kf7 {[%emt 0:00:06]} Rxg6 {[%emt 0:00:21]} 56. Kxg6 {[%emt 0:00:06]} Kxg2 {[%emt 0:00:05]} 57. e8=Q {[%emt 0:00:05]} h3 {[%emt 0:00:07]} 58. Qe2+ {[%emt 0:00:05]} Kh1 {[%emt 0:00:30]} 59. Qf3+ {[%emt 0:00:09]} Kh2 {[%emt 0:00:08]} 60. Qg4 {[%emt 0:00:08]} 1-0

[Event "Catalan Youth Championship 2024"]
[Site "Cambrils"]
[Date "2024.03.24"]
[Round "2.16"]
[White "Lambert Pont, James"]
[Black "Clotet Mas, Dan"]
[Result "1/2-1/2"]
[ECO "D31"]
[WhiteElo "1897"]
[BlackElo "2028"]
[Annotator "NA RC"]
[PlyCount "43"]
[EventDate "2024.03.13"]
[EventType "swiss"]
[EventCountry "ESP"]
[SourceTitle "playchess.com"]
[Source "ChessBase"]
[SourceQuality "1"]
[TimeControl "5400+30"]

1. d4 {[%emt 0:00:03]} d5 {[%emt 0:00:03]} 2. c4 {[%emt 0:00:14]} e6 {[%emt 0:00:11]} 3. Nc3 {[%emt 0:00:05]} a6 {[%emt 0:00:25]} 4. cxd5 {[%emt 0:00:46]} exd5 {[%emt 0:00:05]} 5. Bf4 {[%emt 0:00:27]} Nf6 {[%emt 0:01:50]} 6. e3 {[%emt 0:00:14]} Bd6 {[%emt 0:06:31]} 7. Bg5 {[%emt 0:02:04]} Be6 {[%emt 0:01:28]} 8. Bd3 {[%emt 0:00:41]} h6 {[%emt 0:06:24]} 9. Bh4 {[%emt 0:00:32]} g5 {[%emt 0:09:55]} 10. Bg3 {[%emt 0:01:02]} c6 {[%emt 0:00:10]} 11. a3 {[%emt 0:09:14]} Qc7 {[%emt 0:02:46]} 12. Rc1 {[%emt 0:04:28]} Nbd7 {[%emt 0:09:57]} 13. Nge2 {[%emt 0:03:59]} Nh5 {[%emt 0:23:09]} 14. Nxd5 {[%emt 0:32:46]} Bxd5 {[%emt 0:03:27]} 15. e4 {[%emt 0:00:15]} Nxg3 {[%emt 0:02:57]} 16. hxg3 {[%emt 0:00:58]} Be6 {[%emt 0:02:41]} 17. d5 {[%emt 0:00:40]} Bg4 {[%emt 0:06:26]} 18. f3 {[%emt 0:00:29]} Bxg3+ {[%emt 0:04:49]} 19. Kf1 {[%emt 0:00:28]} Nf6 {[%emt 0:06:59]} 20. dxc6 {[%emt 0:09:55]} bxc6 {[%emt 0:01:56]} 21. fxg4 {[%emt 0:10:41]} Nxg4 {[%emt 0:03:44]} 22. Qa4 {[%emt 0:02:15]} 1/2-1/2